fUST/lending_fUST_20250704
["ID","MTS","AMOUNT","RATE_DAILY","PERIOD"]
[369512141,1751604652599,-485.74,0.0002,2]
[369512143,1751604652607,-664.6,0.0002,2]
[369512146,1751604652618,-1786.15,0.0002,2]
[369512148,1751604652628,-1521.05,0.0002,2]
[369512150,1751604652637,-1611.28,0.0002,2]
[369512152,1751604652646,-1229.42,0.0002,2]
[369512154,1751604652655,-460.0,0.0002,2]
[369512156,1751604652664,-460.0,0.0002,2]
[369512158,1751604652673,-460.0,0.0002,2]
[369512160,1751604652683,-528.43,0.0002,2]
[369512162,1751604652692,-1020.96,0.0002,2]
[369512164,1751604652701,-12578.03337979,0.0002,3]
[369512166,1751604652711,-502.83,0.0002,2]
[369512168,1751604652721,-1496.74,0.0002,2]
[369512170,1751604652731,-460.0,0.0002,2]
[369512172,1751604652742,-849.55,0.0002,2]
[369512174,1751604652751,-1374.26,0.0002,2]
[369512176,1751604652760,-3781.36,0.0002,2]
[369512178,1751604652769,-460.0,0.0002,2]
[369512180,1751604652778,-761.74,0.0002,2]
[369512182,1751604652788,-654.79,0.0002,2]
[369512183,1751604652797,-1079.27,0.0002,2]
[369512184,1751604652806,-1369.921618,0.0002,2]
[369512185,1751604652815,-4000.0,0.0002,4]
[369512186,1751604652825,-1369.921618,0.0002,2]
[369512187,1751604652834,-460.0,0.0002,2]
[369512188,1751604652843,-2004.56956649,0.00020075,2]
[369512189,1751604652852,-823.0,0.00020182,2]
[369512190,1751604652862,-4439.27320297,0.0002021,2]
[369512191,1751604652872,-151.0,0.00020273,2]
[369512192,1751604652881,-151.0,0.00020273,2]
[369512193,1751604652891,-151.0,0.00020273,2]
[369512194,1751604652900,-460.0,0.00020273,2]
[369512195,1751604652910,-460.0,0.00020273,2]
[369512196,1751604652919,-492.18,0.00020273,2]
[369512197,1751604652928,-460.0,0.00020273,2]
[369512198,1751604652938,-280.491531,0.00020273,2]
[369512199,1751604652947,-280.491531,0.00020273,2]
[369512200,1751604652955,-151.0,0.00020273,2]
[369512201,1751604652963,-1277.65,0.00020273,2]
[369512202,1751604652973,-460.0,0.00020273,2]
[369512203,1751604652982,-460.0,0.00020273,2]
[369512204,1751604652991,-460.0,0.00020273,2]
[369512205,1751604653001,-867.18,0.00020273,2]
[369512206,1751604653010,-460.0,0.00020273,2]
[369512207,1751604653019,-1293.38,0.00020273,2]
[369512208,1751604653029,-2202.29,0.00020273,2]
[369512209,1751604653039,-3591.81,0.00020273,2]
[369512210,1751604653048,-505.67,0.00020273,2]
[369512211,1751604653057,-460.0,0.00020273,2]
[369512212,1751604653066,-1371.69,0.00020273,2]
[369512213,1751604653075,-460.0,0.00020273,2]
[369512214,1751604653085,-1552.07,0.00020273,2]
[369512215,1751604653094,-1149.92,0.00020273,2]
[369512216,1751604653103,-495.42,0.00020273,2]
[369512217,1751604653112,-1928.25,0.00020273,2]
[369512218,1751604653122,-460.0,0.00020273,2]
[369512219,1751604653131,-460.0,0.00020273,2]
[369512220,1751604653141,-580.29,0.00020273,2]
[369512221,1751604653151,-2392.35,0.00020273,2]
[369512222,1751604653160,-746.15,0.00020273,2]
[369512223,1751604653171,-491.58,0.00020273,2]
[369512224,1751604653180,-460.0,0.00020273,2]
[369512225,1751604653190,-485.74,0.00020273,2]
[369512226,1751604653200,-664.6,0.00020273,2]
[369512227,1751604653210,-1786.15,0.00020273,2]
[369512228,1751604653219,-1521.05,0.00020273,2]
[369512229,1751604653229,-1611.28,0.00020273,2]
[369512230,1751604653238,-1229.42,0.00020273,2]
[369512231,1751604653249,-460.0,0.00020273,2]
[369512232,1751604653258,-460.0,0.00020273,2]
[369512233,1751604653268,-460.0,0.00020273,2]
[369512234,1751604653277,-528.43,0.00020273,2]
[369512235,1751604653287,-1020.96,0.00020273,2]
[369512236,1751604653297,-502.83,0.00020273,2]
[369512237,1751604653307,-1496.74,0.00020273,2]
[369512238,1751604653317,-460.0,0.00020273,2]
[369512239,1751604653327,-849.55,0.00020273,2]
[369512240,1751604653336,-1374.26,0.00020273,2]
[369512241,1751604653345,-3781.36,0.00020273,2]
[369512242,1751604653354,-460.0,0.00020273,2]
[369512243,1751604653363,-761.74,0.00020273,2]
[369512244,1751604653374,-654.79,0.00020273,2]
[369512245,1751604653383,-1079.27,0.00020273,2]
[369512246,1751604653394,-1369.921618,0.00020273,2]
[369512247,1751604653403,-1369.921618,0.00020273,2]
[369512248,1751604653413,-460.0,0.00020273,2]
[369512249,1751604653423,-2000.0,0.000203,2]
[369512250,1751604653433,-151.0,0.00020314,2]
[369512251,1751604653442,-286.9,0.00020325,4]
[369512252,1751604653451,-2500.0,0.00020335,2]
[369512253,1751604653461,-1504.76473962,0.00020335,2]
[369512254,1751604653470,-151.0,0.00020384,2]
[369512255,1751604653480,-4439.27320297,0.00020486,3]
[369512256,1751604653489,-155.90727,0.00020492,2]
[369512257,1751604653499,-155.90727,0.00020492,2]
[369512258,1751604653508,-151.0,0.00020492,2]
[369512259,1751604653517,-231.28369723,0.00020525,2]
[369512260,1751604653527,-223.44096,0.00020547,2]
[369512261,1751604653536,-151.0,0.00020547,2]
[369512262,1751604653550,-151.0,0.00020547,2]
[369512263,1751604653560,-151.0,0.00020547,2]
[369512264,1751604653569,-460.0,0.00020547,2]
[369512265,1751604653579,-460.0,0.00020547,2]
[369512266,1751604653590,-492.18,0.00020547,2]
[369512269,1751604653711,-460.0,0.00020547,2]
[369512270,1751604653722,-1277.65,0.00020547,2]
[369512271,1751604653732,-460.0,0.00020547,2]
[369512272,1751604653741,-460.0,0.00020547,2]
[369512273,1751604653752,-460.0,0.00020547,2]
[369512274,1751604653761,-867.18,0.00020547,2]
[369512275,1751604653771,-151.0,0.00020547,2]
[369512276,1751604653781,-460.0,0.00020547,2]
[369512277,1751604653791,-1293.38,0.00020547,2]
[369512278,1751604653801,-2202.29,0.00020547,2]
[369512279,1751604653810,-3591.81,0.00020547,2]
[369512280,1751604653820,-505.67,0.00020547,2]
[369512281,1751604653829,-460.0,0.00020547,2]
[369512282,1751604653838,-1371.69,0.00020547,2]
[369512283,1751604653847,-460.0,0.00020547,2]
[369512284,1751604653857,-1552.07,0.00020547,2]
[369512285,1751604653867,-1149.92,0.00020547,2]
[369512286,1751604653876,-495.42,0.00020547,2]
[369512287,1751604653885,-1928.25,0.00020547,2]
[369512288,1751604653894,-460.0,0.00020547,2]
[369512289,1751604653905,-460.0,0.00020547,2]
[369512290,1751604653914,-580.29,0.00020547,2]
[369512291,1751604653924,-2392.35,0.00020547,2]
[369512292,1751604653933,-746.15,0.00020547,2]
[369512293,1751604653943,-491.58,0.00020547,2]
[369512294,1751604653952,-460.0,0.00020547,2]
[369512295,1751604653962,-485.74,0.00020547,2]
[369512296,1751604653971,-664.6,0.00020547,2]
[369512297,1751604653981,-1786.15,0.00020547,2]
[369512298,1751604653990,-1521.05,0.00020547,2]
[369512299,1751604654000,-1611.28,0.00020547,2]
[369512300,1751604654010,-1229.42,0.00020547,2]
[369512301,1751604654019,-460.0,0.00020547,2]
[369512302,1751604654029,-460.0,0.00020547,2]
[369512303,1751604654039,-460.0,0.00020547,2]
[369512304,1751604654048,-528.43,0.00020547,2]
[369512305,1751604654057,-1020.96,0.00020547,2]
[369512306,1751604654067,-502.83,0.00020547,2]
[369512307,1751604654076,-1496.74,0.00020547,2]
[369512308,1751604654087,-460.0,0.00020547,2]
[369512309,1751604654096,-849.55,0.00020547,2]
[369512310,1751604654106,-1374.26,0.00020547,2]
[369512311,1751604654115,-3781.36,0.00020547,2]
[369512312,1751604654124,-450.5981466,0.00020547,2]
[369512313,1751604654134,-761.74,0.00020547,2]
[369512314,1751604654144,-654.79,0.00020547,2]
[369512315,1751604654154,-1079.27,0.00020547,2]
[369512316,1751604654163,-460.0,0.00020547,2]
[369512317,1751604654173,-224.160924,0.00020567,2]
[369512318,1751604654182,-224.160924,0.00020567,2]
[369512319,1751604654192,-21538.41057442,0.000206,5]
[369512320,1751604654202,-3722.69409521,0.000206,7]
[369512321,1751604654211,-8733.84,0.000206,2]
[369512322,1751604654221,-151.0,0.000206,2]
[369512323,1751604654230,-151.0,0.000206,2]
[369512324,1751604654240,-1369.921618,0.000206,2]
[369512325,1751604654250,-1369.921618,0.000206,2]
[369512326,1751604654260,-205.87183,0.00020644,2]
[369512327,1751604654269,-561.45113896,0.00020653,4]
[369512328,1751604654278,-1875.35,0.0002071,20]
[369512329,1751604654288,-500.0,0.00020719,2]
[369512330,1751604654297,-286.9,0.00020757,4]
[369512331,1751604654306,-4439.27320297,0.00020762,3]
[369512332,1751604654315,-280.491531,0.00020796,2]
[369512333,1751604654325,-280.491531,0.00020796,2]
[369512334,1751604654334,-151.0,0.00020796,2]
[369512335,1751604654343,-151.0,0.000208,2]
[369512336,1751604654353,-151.0,0.00020821,2]
[369512337,1751604654362,-151.0,0.00020821,2]
[369512338,1751604654372,-151.0,0.00020821,2]
[369512339,1751604654382,-151.0,0.00020821,2]
[369512340,1751604654392,-460.0,0.00020821,2]
[369512341,1751604654402,-460.0,0.00020821,2]
[369512342,1751604654412,-492.18,0.00020821,2]
[369512343,1751604654422,-460.0,0.00020821,2]
[369512344,1751604654431,-155.90727,0.00020821,2]
[369512345,1751604654442,-155.90727,0.00020821,2]
[369512346,1751604654451,-1277.65,0.00020821,2]
[369512347,1751604654461,-460.0,0.00020821,2]
[369512348,1751604654470,-460.0,0.00020821,2]
[369512349,1751604654480,-460.0,0.00020821,2]
[369512350,1751604654489,-867.18,0.00020821,2]
[369512351,1751604654498,-151.0,0.00020821,2]
[369512352,1751604654508,-151.0,0.00020821,2]
[369512353,1751604654518,-460.0,0.00020821,2]
[369512355,1751604654527,-1293.38,0.00020821,2]
[369512356,1751604654536,-2202.29,0.00020821,2]
[369512357,1751604654550,-3591.81,0.00020821,2]
[369512358,1751604654560,-505.67,0.00020821,2]
[369512359,1751604654569,-460.0,0.00020821,2]
[369512360,1751604654579,-1371.69,0.00020821,2]
[369512361,1751604654588,-243.15823216,0.00020821,2]
[369512362,1751604654598,-153.137,0.00020821,2]
[369512363,1751604654607,-1552.07,0.00020821,2]
[369512364,1751604654616,-1149.92,0.00020821,2]
[369512365,1751604654625,-495.42,0.00020821,2]
[369512366,1751604654635,-1928.25,0.00020821,2]
[369512367,1751604654644,-460.0,0.00020821,2]
[369512368,1751604654654,-460.0,0.00020821,2]
[369512369,1751604654663,-580.29,0.00020821,2]
[369512370,1751604654672,-2392.35,0.00020821,2]
[369512371,1751604654682,-746.15,0.00020821,2]
[369512372,1751604654691,-491.58,0.00020821,2]
[369512373,1751604654701,-460.0,0.00020821,2]
[369512374,1751604654710,-485.74,0.00020821,2]
[369512375,1751604654720,-664.6,0.00020821,2]
[369512376,1751604654730,-1786.15,0.00020821,2]
[369512377,1751604654739,-1521.05,0.00020821,2]
[369512378,1751604654748,-1611.28,0.00020821,2]
[369512379,1751604654759,-1229.42,0.00020821,2]
[369512380,1751604654768,-460.0,0.00020821,2]
[369512381,1751604654778,-460.0,0.00020821,2]
[369512382,1751604654787,-460.0,0.00020821,2]
[369512383,1751604654797,-528.43,0.00020821,2]
[369512384,1751604654806,-1020.96,0.00020821,2]
[369512385,1751604654815,-502.83,0.00020821,2]
[369512386,1751604654824,-1496.74,0.00020821,2]
[369512387,1751604654834,-460.0,0.00020821,2]
[369512388,1751604654844,-849.55,0.00020821,2]
[369512389,1751604654853,-1374.26,0.00020821,2]
[369512390,1751604654864,-3781.36,0.00020821,2]
[369512391,1751604654873,-761.74,0.00020821,2]
[369512392,1751604654883,-654.79,0.00020821,2]
[369512393,1751604654892,-1079.27,0.00020821,2]
[369512395,1751604654902,-460.0,0.00020821,2]
[369512397,1751604654912,-3000.0,0.00020883,2]
[369512399,1751604654922,-7380.27333993,0.00020995,2]
[369512401,1751604654931,-29611.82551911,0.00021,2]
[369512402,1751604654941,-4430.0,0.00021,2]
[369512403,1751604654952,-1509.04739719,0.00021,2]
[369512404,1751604654962,-3000.0,0.00021,2]
[369512405,1751604654972,-224.160924,0.00021,2]
[369512406,1751604654983,-224.160924,0.00021,2]
[369512407,1751604654992,-3000.0,0.0002101,2]
[369512408,1751604655002,-151.0,0.0002101,2]
[369512409,1751604655012,-151.0,0.0002101,2]
[369512410,1751604655023,-1369.921618,0.0002101,2]
[369512411,1751604655033,-1369.921613,0.0002101,2]
[369512412,1751604655043,-3000.0,0.0002102,2]
[369512413,1751604655053,-3000.0,0.0002103,2]
[369512414,1751604655063,-4439.27320297,0.00021038,4]
[369512416,1751604655073,-3000.0,0.0002104,2]
[369512417,1751604655082,-3000.0,0.0002105,2]
[369512419,1751604655091,-200.0,0.0002105,2]
[369512420,1751604655101,-255.63244,0.0002105,2]
[369512421,1751604655110,-3000.0,0.0002106,2]
[369512422,1751604655120,-3000.0,0.0002107,2]
[369512423,1751604655130,-3000.0,0.0002108,2]
[369512424,1751604655139,-280.491531,0.0002108,2]
[369512425,1751604655149,-280.491531,0.0002108,2]
[369512426,1751604655158,-151.0,0.0002108,2]
[369512427,1751604655167,-3000.0,0.0002109,2]
[369512428,1751604655178,-151.0,0.00021095,2]
[369512429,1751604655187,-191.410658,0.00021095,2]
[369512430,1751604655197,-151.0,0.00021095,2]
[369512431,1751604655206,-198.12133,0.00021095,2]
[369512432,1751604655217,-460.0,0.00021095,2]
[369512433,1751604655226,-460.0,0.00021095,2]
[369512434,1751604655235,-492.18,0.00021095,2]
[369512435,1751604655246,-460.0,0.00021095,2]
[369512436,1751604655255,-155.90727,0.00021095,2]
[369512437,1751604655264,-155.90727,0.00021095,2]
[369512438,1751604655274,-1277.65,0.00021095,2]
[369512439,1751604655283,-460.0,0.00021095,2]
[369512440,1751604655293,-460.0,0.00021095,2]
[369512441,1751604655302,-544.6050057,0.00021095,2]
[369512442,1751604655312,-867.18,0.00021095,2]
[369512443,1751604655323,-194.317524,0.00021095,2]
[369512444,1751604655333,-281.908706,0.00021095,2]
[369512445,1751604655343,-460.0,0.00021095,2]
[369512446,1751604655352,-1293.38,0.00021095,2]
[369512447,1751604655362,-2202.29,0.00021095,2]
[369512448,1751604655371,-3591.81,0.00021095,2]
[369512449,1751604655381,-505.67,0.00021095,2]
[369512450,1751604655390,-460.0,0.00021095,2]
[369512451,1751604655400,-1371.69,0.00021095,2]
[369512452,1751604655410,-1552.07,0.00021095,2]
[369512453,1751604655420,-1149.92,0.00021095,2]
[369512454,1751604655429,-495.42,0.00021095,2]
[369512455,1751604655438,-1928.25,0.00021095,2]
[369512456,1751604655448,-460.0,0.00021095,2]
[369512457,1751604655459,-460.0,0.00021095,2]
[369512458,1751604655675,-580.29,0.00021095,2]
[369512459,1751604655685,-2392.35,0.00021095,2]
[369512460,1751604655695,-746.15,0.00021095,2]
[369512461,1751604655705,-491.58,0.00021095,2]
[369512462,1751604655714,-460.0,0.00021095,2]
[369512463,1751604655723,-485.74,0.00021095,2]
[369512464,1751604655733,-664.6,0.00021095,2]
[369512465,1751604655744,-1786.15,0.00021095,2]
[369512466,1751604655753,-1521.05,0.00021095,2]
[369512467,1751604655763,-1611.28,0.00021095,2]
[369512468,1751604655773,-1229.42,0.00021095,2]
[369512469,1751604655783,-170.42039192,0.00021095,2]
[369512471,1751604655793,-205.75508075,0.00021095,2]
[369512472,1751604655802,-460.0,0.00021095,2]
[369512474,1751604655812,-528.43,0.00021095,2]
[369512476,1751604655821,-1020.96,0.00021095,2]
[369512483,1751604655929,-502.83,0.00021095,2]
[369512484,1751604655939,-1496.74,0.00021095,2]
[369512485,1751604655948,-460.0,0.00021095,2]
[369512486,1751604655958,-849.55,0.00021095,2]
[369512487,1751604655967,-1374.26,0.00021095,2]
[369512488,1751604655978,-3781.36,0.00021095,2]
[369512489,1751604655988,-761.74,0.00021095,2]
[369512490,1751604655998,-654.79,0.00021095,2]
[369512491,1751604656008,-1079.27,0.00021095,2]
[369512492,1751604656018,-460.0,0.00021095,2]
[369512493,1751604656028,-3000.0,0.000211,2]
[369512494,1751604656037,-3000.0,0.0002111,2]
[369512495,1751604656047,-3000.0,0.0002112,2]
[369512496,1751604656056,-3000.0,0.0002113,2]
[369512497,1751604656066,-3000.0,0.0002114,2]
[369512498,1751604656075,-3000.0,0.0002115,2]
[369512499,1751604656085,-3000.0,0.0002116,2]
[369512500,1751604656095,-3000.0,0.0002117,2]
[369512501,1751604656104,-3000.0,0.0002118,2]
[369512502,1751604656113,-3000.0,0.0002119,2]
[369512503,1751604656123,-286.9,0.0002119,5]
[369512504,1751604656133,-3000.0,0.000212,2]
[369512505,1751604656142,-224.160924,0.00021205,2]
[369512506,1751604656151,-224.160924,0.00021205,2]
[369512507,1751604656161,-3000.0,0.0002121,2]
[369512508,1751604656171,-3000.0,0.0002122,2]
[369512509,1751604656180,-3000.0,0.0002123,2]
[369512510,1751604656190,-3000.0,0.0002124,2]
[369512511,1751604656200,-3000.0,0.0002125,2]
[369512512,1751604656209,-3000.0,0.0002126,2]
[369512513,1751604656219,-151.0,0.0002126,2]
[369512514,1751604656229,-151.0,0.0002126,2]
[369512515,1751604656238,-600.0,0.00021266,2]
[369512516,1751604656248,-600.0,0.00021266,2]
[369512517,1751604656257,-600.0,0.00021266,2]
[369512518,1751604656267,-600.0,0.00021266,2]
[369512519,1751604656277,-600.0,0.00021266,2]
[369512520,1751604656286,-600.0,0.00021266,2]
[369512521,1751604656295,-600.0,0.00021266,2]
[369512522,1751604656304,-300.96358073,0.00021266,2]
[369512523,1751604656313,-600.0,0.00021266,2]
[369512524,1751604656323,-300.57814844,0.00021266,2]
[369512525,1751604656332,-600.0,0.00021266,2]
[369512526,1751604656342,-3000.0,0.0002127,2]
[369512527,1751604656351,-315.84769837,0.0002127,2]
[369512528,1751604656361,-501.25868141,0.00021271,2]
[369512529,1751604656370,-500.0,0.00021271,2]
[369512530,1751604656379,-500.72075072,0.00021271,2]
[369512531,1751604656389,-248.6543117,0.00021271,2]
[369512532,1751604656398,-290.3423407,0.00021271,2]
[369512533,1751604656408,-600.0,0.00021271,2]
[369512534,1751604656417,-600.0,0.00021271,2]
[369512535,1751604656427,-600.0,0.00021271,2]
[369512536,1751604656436,-600.0,0.00021271,2]
[369512537,1751604656445,-600.0,0.00021271,2]
[369512538,1751604656455,-600.0,0.00021271,2]
[369512539,1751604656465,-600.0,0.00021271,2]
[369512540,1751604656474,-600.0,0.00021271,2]
[369512541,1751604656484,-600.0,0.00021271,2]
[369512542,1751604656494,-600.0,0.00021271,2]
[369512543,1751604656504,-600.0,0.00021271,2]
[369512544,1751604656513,-600.0,0.00021271,2]
[369512545,1751604656523,-600.0,0.00021271,2]
[369512546,1751604656532,-600.0,0.00021271,2]
[369512547,1751604656542,-600.0,0.00021271,2]
[369512548,1751604656555,-600.0,0.00021271,2]
[369512549,1751604656565,-600.0,0.00021271,2]
[369512550,1751604656574,-600.0,0.00021271,2]
[369512551,1751604656584,-600.0,0.00021271,2]
[369512552,1751604656594,-3000.0,0.0002128,2]
[369512553,1751604656604,-280.491531,0.0002128,2]
[369512554,1751604656613,-280.491532,0.0002128,2]
[369512555,1751604656623,-206.840116,0.0002128,2]
[369512556,1751604656633,-3000.0,0.0002129,2]
[369512557,1751604656643,-3000.0,0.000213,2]
[369512558,1751604656652,-2000.0,0.000213,2]
[369512559,1751604656664,-3000.0,0.0002131,2]
[369512560,1751604656674,-154.24421111,0.0002131,2]
[369512561,1751604656684,-4439.27320297,0.00021314,5]
[369512562,1751604656694,-3000.0,0.0002132,2]
[369512563,1751604656704,-155.90727,0.0002132,2]
[369512564,1751604656714,-155.90728,0.0002132,2]
[369512565,1751604656724,-2051.5,0.00021327,2]
[369512566,1751604656734,-500.39285804,0.00021327,2]
[369512567,1751604656744,-500.0,0.00021327,2]
[369512568,1751604656754,-257.84611993,0.00021327,2]
[369512569,1751604656763,-537.5530194,0.00021327,2]
[369512570,1751604656774,-500.0,0.00021327,2]
[369512571,1751604656783,-500.0,0.00021327,2]
[369512572,1751604656792,-500.0,0.00021327,2]
[369512573,1751604656801,-500.0,0.00021327,2]
[369512574,1751604656817,-500.0,0.00021327,2]
[369512575,1751604656835,-502.66644241,0.00021327,2]
[369512576,1751604656851,-500.0,0.00021327,2]
[369512577,1751604656864,-500.0,0.00021327,2]
[369512578,1751604656880,-503.83402379,0.00021327,2]
[369512579,1751604656896,-500.0,0.00021327,2]
[369512580,1751604656912,-517.98876571,0.00021327,2]
[369512581,1751604656929,-153.40150232,0.00021327,2]
[369512582,1751604656946,-500.0,0.00021327,2]
[369512583,1751604656961,-500.0,0.00021327,2]
[369512584,1751604656975,-500.41835876,0.00021327,2]
[369512585,1751604656990,-500.27781983,0.00021327,2]
[369512586,1751604657005,-500.0,0.00021327,2]
[369512587,1751604657021,-500.0,0.00021327,2]
[369512588,1751604657033,-500.0,0.00021327,2]
[369512589,1751604657046,-600.0,0.00021327,2]
[369512590,1751604657059,-500.0,0.00021327,2]
[369512591,1751604657074,-500.0,0.00021327,2]
[369512592,1751604657089,-500.0,0.00021327,2]
[369512593,1751604657105,-3000.0,0.0002133,2]
[369512594,1751604657121,-500.75685423,0.00021332,2]
[369512595,1751604657137,-500.771196,0.00021332,2]
[369512596,1751604657149,-3000.0,0.0002134,2]
[369512597,1751604657161,-170.564239,0.00021348,2]
[369512598,1751604657175,-3000.0,0.0002135,2]
[369512599,1751604657191,-3000.0,0.0002136,2]
[369512600,1751604657206,-151.0,0.00021369,2]
[369512601,1751604657218,-438.61214918,0.00021369,2]
[369512602,1751604657232,-460.0,0.00021369,2]
[369512603,1751604657246,-492.18,0.00021369,2]
[369512604,1751604657258,-421.82714529,0.00021369,2]
[369512605,1751604657271,-1277.65,0.00021369,2]
[369512606,1751604657284,-460.0,0.00021369,2]
[369512607,1751604657298,-460.0,0.00021369,2]
[369512608,1751604657311,-867.18,0.00021369,2]
[369512609,1751604657323,-460.0,0.00021369,2]
[369512610,1751604657336,-1293.38,0.00021369,2]
[369512611,1751604657349,-2202.29,0.00021369,2]
[369512612,1751604657362,-3591.81,0.00021369,2]
[369512613,1751604657376,-505.67,0.00021369,2]
[369512614,1751604657389,-460.0,0.00021369,2]
[369512615,1751604657401,-1371.69,0.00021369,2]
[369512616,1751604657414,-1552.07,0.00021369,2]
[369512617,1751604657427,-1149.92,0.00021369,2]
[369512618,1751604657440,-495.42,0.00021369,2]
[369512619,1751604657453,-1928.25,0.00021369,2]
[369512620,1751604657466,-451.59764828,0.00021369,2]
[369512621,1751604657479,-460.0,0.00021369,2]
[369512622,1751604657492,-580.29,0.00021369,2]
[369512623,1751604657506,-2392.35,0.00021369,2]
[369512624,1751604657726,-746.15,0.00021369,2]
[369512625,1751604657739,-491.58,0.00021369,2]
[369512626,1751604657752,-218.52696632,0.00021369,2]
[369512627,1751604657766,-485.74,0.00021369,2]
[369512628,1751604657780,-664.6,0.00021369,2]
[369512629,1751604657794,-1786.15,0.00021369,2]
[369512630,1751604657807,-1521.05,0.00021369,2]
[369512631,1751604657819,-1611.28,0.00021369,2]
[369512632,1751604657832,-1229.42,0.00021369,2]
[369512633,1751604657845,-460.0,0.00021369,2]
[369512634,1751604657858,-528.43,0.00021369,2]
[369512635,1751604657870,-1020.96,0.00021369,2]
[369512636,1751604657883,-502.83,0.00021369,2]
[369512637,1751604657896,-1496.74,0.00021369,2]
[369512638,1751604657909,-535.41696936,0.00021369,2]
[369512639,1751604657921,-849.55,0.00021369,2]
[369512640,1751604657935,-1374.26,0.00021369,2]
[369512641,1751604657947,-3781.36,0.00021369,2]
[369512642,1751604657963,-761.74,0.00021369,2]
[369512643,1751604657978,-654.79,0.00021369,2]
[369512644,1751604657991,-1079.27,0.00021369,2]
[369512645,1751604658006,-460.0,0.00021369,2]
[369512646,1751604658019,-3000.0,0.0002137,2]
[369512647,1751604658032,-189.50861902,0.0002137,2]
[369512648,1751604658047,-3000.0,0.0002138,2]
[369512649,1751604658060,-7380.27333989,0.00021384,2]
[369512650,1751604658074,-3000.0,0.0002139,2]
[369512651,1751604658088,-3000.0,0.000214,2]
[369512652,1751604658101,-3000.0,0.0002141,2]
[369512653,1751604658114,-3000.0,0.0002142,2]
[369512654,1751604658127,-5796.862563,0.0002143,2]
[369512655,1751604658141,-224.160924,0.0002143,2]
[369512656,1751604658155,-224.160924,0.0002143,2]
[369512657,1751604658169,-2011.99532331,0.00021431,2]
[369512658,1751604658182,-10110.41122512,0.000215,2]
[369512659,1751604658499,-2388.87106019,0.000215,2]
[369512660,1751604658510,-160.0,0.000215,3]
[369512661,1751604658520,-160.0,0.000215,3]
[369512662,1751604658530,-4439.27320297,0.0002159,5]
[369512663,1751604658539,-2000.0,0.000216,2]
[369512664,1751604658553,-2000.0,0.000216,2]
[369512665,1751604658562,-8733.84,0.000216,2]
[369512666,1751604658571,-189.440729,0.000216,2]
[369512667,1751604658581,-151.0,0.000216,2]
[369512668,1751604658591,-286.9,0.00021623,5]
[369512669,1751604658601,-500.0,0.00021643,10]
[369512670,1751604658610,-500.0,0.00021643,10]
[369512671,1751604658620,-500.0,0.00021643,10]
[369512672,1751604658631,-500.0,0.00021643,10]
[369512673,1751604658640,-500.0,0.00021643,10]
[369512674,1751604658651,-500.0,0.00021643,10]
[369512675,1751604658660,-500.0,0.00021643,10]
[369512676,1751604658670,-300.20009909,0.00021643,10]
[369512677,1751604658679,-500.0,0.00021643,10]
[369512678,1751604658688,-500.0,0.00021643,10]
[369512679,1751604658698,-500.0,0.00021643,10]